bitfinex/quotes_ETHUSD_20250420
["timestamp","ask_amount","ask_price","bid_price","bid_amount"]
[1745172525644,3.48776003,1577.6,1577.5,66.8134]
[1745172525856,5.18872314,1577.7,1577.5,66.8134]
[1745172541311,2.40629463,1577.6,1577.5,66.8134]
[1745172560438,3.76299463,1577.6,1577.5,62.473]
[1745172561433,3.21299463,1577.6,1577.5,62.473]
[1745172561638,2.40629463,1577.6,1577.5,62.473]
[1745172566155,2.40629463,1577.6,1577.5,63.2952]
[1745172568156,2.40629463,1577.8,1577.5,67.6356]
[1745172571762,2.40629463,1577.8,1577.6,4.3404]
[1745172573747,3.16889463,1577.7,1577.6,4.3404]
[1745172576665,3.71889463,1577.7,1577.6,5.197]
[1745172576875,5.61926741,1577.7,1577.6,5.197]
[1745172591363,5.61926741,1577.7,1577.6,59.471]
[1745172602214,1.90037278,1577.7,1577.6,67.6082]
[1745172602425,1.90037278,1577.7,1577.6,68.39406892]
[1745172602578,0.1,1578.4,1577.6,68.39406892]
[1745172602579,2.40629463,1578.0,1577.7,0.7575]
[1745172602783,2.40629463,1578.1,1577.9,0.7575]
[1745172603022,2.40629463,1578.1,1578.0,5.197]
[1745172605404,2.95629463,1578.1,1578.0,5.197]
[1745172605630,3.75654423,1578.1,1578.0,5.197]
[1745172606138,2.95629463,1578.1,1578.0,5.197]
[1745172606435,3.03550767,1578.1,1578.0,5.197]
[1745172606900,2.95629463,1578.1,1578.0,5.197]
[1745172607842,6.15378926,1578.1,1577.9,4.3404]
[1745172608140,0.62922129,1578.0,1577.9,4.3404]
[1745172608314,1.25252235,1578.0,1577.9,5.197]
[1745172609446,6.85631161,1578.0,1577.9,5.197]
[1745172613044,6.77709032,1578.0,1577.9,5.197]
[1745172613247,2.95629463,1578.0,1577.9,5.197]
[1745172615671,5.36258926,1578.0,1577.9,5.197]
[1745172616587,6.15378926,1578.0,1577.9,5.197]
[1745172617445,3.74749463,1578.0,1577.9,59.464]
[1745172617668,5.36258926,1578.0,1577.9,59.464]
[1745172618075,4.85733616,1578.0,1577.9,59.464]
[1745172618386,7.26363079,1578.0,1577.9,59.464]
[1745172618687,8.06911387,1578.0,1577.9,59.464]
[1745172629570,8.89111387,1578.0,1577.9,59.464]
[1745172633708,7.26363079,1578.0,1577.9,59.464]
[1745172634007,7.34285429,1578.0,1577.9,59.464]
[1745172634908,7.26363079,1578.0,1577.9,59.464]
[1745172646715,4.85733616,1578.0,1577.9,59.464]
[1745172654926,5.62493616,1578.0,1577.9,59.464]
[1745172655125,8.03123079,1578.0,1577.9,59.464]
[1745172655326,4.85733616,1578.0,1577.9,59.464]
[1745172655826,7.26363079,1578.0,1577.9,59.464]
[1745172656194,8.07467588,1578.0,1577.9,59.464]
[1745172657263,8.84227588,1578.0,1577.9,59.464]
[1745172657418,0.55,1577.8,1577.4,0.7873]
[1745172657733,2.40629463,1577.5,1577.4,0.7873]
[1745172657908,2.95629463,1577.5,1577.4,5.1277]
[1745172658102,4.99680325,1577.5,1577.4,4.3404]
[1745172659228,2.04050862,1577.5,1577.4,5.1496]
[1745172659412,4.44680325,1577.5,1577.4,5.0996]
[1745172660298,4.44680325,1577.5,1577.4,8.0996]
[1745172660499,2.04050862,1577.5,1577.4,8.0996]
[1745172665438,2.04050862,1577.5,1577.4,67.5716]
[1745172666033,2.40629463,1577.6,1577.4,67.5716]
[1745172668409,2.40629463,1577.6,1577.5,4.2904]
[1745172680225,2.40629463,1577.6,1577.4,63.7624]
[1745172680427,2.0383687,1577.5,1577.4,63.7624]
[1745172680638,2.40629463,1577.6,1577.4,63.7624]
[1745172680925,2.0383687,1577.5,1577.4,63.7624]
[1745172681262,2.40629463,1577.6,1577.4,63.7624]
[1745172681760,2.0383687,1577.5,1577.4,63.7624]
[1745172682165,2.40629463,1577.6,1577.4,63.7624]
[1745172682459,2.0383687,1577.5,1577.4,63.7624]
[1745172683063,2.40629463,1577.6,1577.4,63.7624]
[1745172683535,2.0383687,1577.5,1577.4,63.7624]
[1745172683866,2.40629463,1577.6,1577.4,63.7624]
[1745172684260,2.0383687,1577.5,1577.4,63.7624]
[1745172684763,2.40629463,1577.6,1577.4,63.7624]
[1745172685166,2.0383687,1577.5,1577.4,63.7624]
[1745172685463,2.40629463,1577.6,1577.4,63.7624]
[1745172685863,2.03427411,1577.5,1577.4,63.7624]
[1745172686032,2.03323985,1577.5,1577.4,63.7624]
[1745172686359,2.40629463,1577.6,1577.4,63.7624]
[1745172686854,2.0379413,1577.5,1577.4,63.7624]
[1745172687256,2.40629463,1577.6,1577.4,63.7624]
[1745172687765,2.0379413,1577.5,1577.4,63.7624]
[1745172688067,2.40629463,1577.6,1577.4,63.7624]
[1745172688526,2.0379413,1577.5,1577.4,63.7624]
[1745172688861,2.40629463,1577.6,1577.4,63.7624]
[1745172689262,2.0379413,1577.5,1577.4,63.7624]
[1745172689463,2.0379413,1577.5,1577.4,63.7694]
[1745172689766,2.40629463,1577.6,1577.4,63.7694]
[1745172690067,2.0379413,1577.5,1577.4,63.7694]
[1745172690472,2.40629463,1577.6,1577.4,63.7694]
[1745172690841,2.0379413,1577.5,1577.4,63.7694]
[1745172695495,2.40629463,1577.6,1577.4,63.7694]
[1745172695853,2.03713871,1577.5,1577.4,63.7694]
[1745172699805,1.95073871,1577.5,1577.4,63.7694]
[1745172705705,2.40629463,1577.6,1577.4,63.7694]
[1745172706132,2.02993871,1577.5,1577.4,63.7694]
[1745172715105,2.79523871,1577.5,1577.4,63.7694]
[1745172715640,0.7653,1577.5,1577.4,63.7694]
[1745172716015,2.79510496,1577.5,1577.4,63.7694]
[1745172717406,2.02980496,1577.5,1577.4,63.7694]
[1745172720337,3.10557492,1577.5,1577.4,63.7694]
[1745172721255,2.57980496,1577.5,1577.4,59.479]
[1745172728160,2.02980496,1577.5,1577.4,59.479]
[1745172728460,2.40629463,1577.6,1577.4,59.479]
[1745172728656,2.02873471,1577.5,1577.4,59.479]
[1745172728861,2.40629463,1577.6,1577.4,59.479]
[1745172729157,2.02873471,1577.5,1577.4,59.479]
[1745172729535,2.40629463,1577.6,1577.5,0.8157]
[1745172731023,2.95629463,1577.8,1577.5,0.8157]
[1745172731224,3.33989834,1577.8,1577.5,0.8157]
[1745172732249,2.95629463,1577.8,1577.5,0.8157]
[1745172732572,2.40629463,1577.8,1577.5,0.8157]
[1745172733025,2.40629463,1577.7,1577.5,5.1061]
[1745172737637,2.03060755,1577.6,1577.5,5.1061]
[1745172737837,2.40629463,1577.7,1577.5,5.1061]
[1745172738171,2.03060755,1577.6,1577.5,5.1061]
[1745172738528,2.40629463,1577.6,1577.5,5.1061]
[1745172744599,2.40629463,1577.7,1577.5,5.1061]
[1745172744757,2.40629463,1577.7,1577.6,5.197]
[1745172746556,2.40629463,1577.7,1577.6,9.4874]
[1745172747058,2.40629463,1577.9,1577.7,0.7628]
[1745172750096,2.40629463,1577.8,1577.6,10.2584]
[1745172751604,2.40629463,1577.7,1577.6,9.4874]
[1745172755404,2.40629463,1577.7,1577.6,63.7544]
[1745172756202,4.43837343,1577.7,1577.6,63.7544]
[1745172756500,4.96315077,1577.7,1577.6,63.7544]
[1745172762505,4.96315077,1577.7,1577.6,59.464]
[1745172768219,5.51315077,1577.7,1577.6,54.267]
[1745172768426,6.30905077,1577.7,1577.6,59.464]
[1745172777470,12.96705077,1577.7,1577.6,59.464]
[1745172777601,6.30905077,1577.7,1577.6,59.464]
[1745172783532,4.43837343,1577.7,1577.6,59.464]
[1745172784337,5.24317343,1577.7,1577.6,59.464]
[1745172789771,4.43837343,1577.7,1577.6,59.464]
[1745172804894,2.0320788,1577.7,1577.6,65.40900225]
[1745172805188,2.40629463,1577.9,1577.7,0.8239]
[1745172805394,2.40629463,1577.8,1577.7,0.8239]
[1745172805589,4.43529693,1577.8,1577.7,0.8239]
[1745172805798,2.40629463,1577.8,1577.7,0.8239]
[1745172807597,2.40629463,1577.9,1577.7,0.8239]
[1745172807979,2.0290023,1577.8,1577.7,0.8239]
[1745172808385,2.40629463,1577.9,1577.7,0.8239]
[1745172808778,2.0290023,1577.8,1577.7,0.8239]
[1745172809184,2.40629463,1577.9,1577.7,4.2904]
[1745172809494,2.40629463,1577.9,1577.8,0.7879]
[1745172813170,4.43529693,1577.9,1577.8,0.7879]
[1745172824609,4.43529693,1577.9,1577.8,5.9839]
[1745172829534,4.43529693,1577.9,1577.8,59.458]
[1745172850247,4.43529693,1577.9,1577.8,63.7484]
[1745172862312,2.7883023,1577.9,1577.8,63.7484]
[1745172862519,4.09839146,1577.9,1577.8,63.7484]
[1745172865317,4.98529693,1577.9,1577.8,63.7484]
[1745172867310,4.43529693,1577.9,1577.8,63.7484]
[1745172867921,4.43529693,1577.9,1577.8,59.458]
[1745172870899,2.0290023,1577.9,1577.8,59.458]
[1745172875025,2.5790023,1577.9,1577.8,59.458]
[1745172875245,3.16061199,1577.9,1577.8,59.458]
[1745172885987,3.97691199,1577.9,1577.8,54.262]
[1745172886178,4.05613358,1577.9,1577.8,59.457]
[1745172886390,6.38320662,1577.9,1577.8,59.457]
[1745172897131,4.98529693,1577.9,1577.8,59.457]
[1745172901535,4.43529693,1577.9,1577.8,59.457]
[1745172901714,4.43529693,1577.9,1577.8,60.2697]
[1745172901918,2.0290023,1577.9,1577.8,60.2697]
[1745172903038,2.0290023,1577.9,1577.8,64.5601]
[1745172903546,4.43529693,1577.9,1577.8,64.5601]
[1745172912756,4.43529693,1577.9,1577.8,63.7474]
[1745172913257,5.25229693,1577.9,1577.8,63.7474]
[1745172913644,6.01815609,1577.9,1577.8,63.7474]
[1745172914954,6.56815609,1577.9,1577.8,59.457]
[1745172915322,0.55,1577.8,1577.7,4.2904]
[1745172915629,3.77329463,1577.8,1577.7,63.7464]
[1745172915828,5.80724559,1577.8,1577.7,63.7464]
[1745172916039,6.47247896,1577.8,1577.7,63.7464]
[1745172920036,0.7726,1577.7,1577.2,0.7996]
[1745172920226,0.85183218,1577.7,1577.3,6.0]
[1745172920431,2.40629463,1577.4,1577.3,6.0]
[1745172921263,4.43690218,1577.4,1577.3,6.0]
[1745172922757,4.43690218,1577.4,1577.2,0.7996]
[1745172924330,2.40629463,1577.3,1577.2,0.7996]
[1745172924758,4.43690218,1577.3,1577.2,0.7996]
[1745172924961,4.8805924,1577.3,1576.9,6.0]
[1745172925274,2.40629463,1577.0,1576.9,6.0]
[1745172925589,2.40629463,1577.0,1576.9,66.2676]
[1745172925746,4.43690218,1577.0,1576.9,66.2676]
[1745172925942,2.40629463,1577.0,1576.9,66.2676]
[1745172931870,0.55,1577.3,1576.9,66.2676]
[1745172932174,2.40629463,1577.0,1576.9,66.2676]
[1745172952496,2.40629463,1577.0,1576.9,69.2676]
[1745172956597,2.40629463,1577.3,1577.1,0.8254]
[1745172956798,2.40629463,1577.5,1577.3,3.0]
[1745172957007,2.40629463,1577.6,1577.4,12.0214]
[1745172957297,2.40629463,1577.6,1577.5,3.0]
[1745172958264,3.18029463,1577.6,1577.5,5.195]
[1745172958603,5.90461872,1577.6,1577.5,5.195]
[1745172959109,7.93509252,1577.6,1577.5,5.195]
[1745172959269,5.52879789,1577.6,1577.5,5.195]
[1745172959472,7.93509252,1577.6,1577.5,5.195]
[1745172960801,8.48509252,1577.6,1577.5,5.195]
[1745172961413,14.1043795,1577.6,1577.5,5.195]
[1745172963209,14.1043795,1577.6,1577.5,59.475]
[1745172964079,8.88844138,1577.6,1577.5,59.475]
[1745172966681,8.33844138,1577.6,1577.5,59.475]
[1745172972335,7.24641192,1577.6,1577.5,59.475]
[1745172983422,4.43719099,1577.6,1577.5,59.475]
[1745172991154,2.0304738,1577.6,1577.5,61.70733351]
[1745172991356,2.40671719,1577.9,1577.5,63.20978558]
[1745172991523,2.40671719,1577.9,1577.6,6.8267]
[1745172991858,2.40671719,1577.7,1577.6,6.8267]
[1745172993064,2.40671719,1577.9,1577.7,0.7617]
[1745172993444,2.02886855,1577.8,1577.7,0.7617]
[1745172993950,2.40671719,1577.9,1577.7,0.7617]
[1745172994169,2.02886855,1577.8,1577.7,0.7617]
[1745172994354,2.40671719,1577.9,1577.7,0.7617]
[1745172994557,2.02886855,1577.8,1577.7,0.7617]
[1745172994758,2.40671719,1577.9,1577.7,0.7617]
[1745172994926,2.02886855,1577.8,1577.7,0.7617]
[1745172995125,2.40671719,1577.9,1577.7,0.7617]
[1745172995426,2.02886855,1577.8,1577.7,0.7617]
[1745172995628,2.40671719,1577.9,1577.7,0.7617]
[1745172995836,2.02886855,1577.8,1577.7,0.7617]
[1745172996039,2.40671719,1577.9,1577.7,0.7617]
[1745172996251,4.43558574,1577.8,1577.7,0.7617]
[1745172996639,2.40671719,1577.8,1577.7,0.7617]
[1745172997060,2.40671719,1577.8,1577.6,6.0]
[1745172997755,2.40671719,1577.7,1577.6,9.0]
[1745172999973,2.40671719,1577.7,1577.6,9.7617]
[1745173004180,0.7771,1578.3,1577.7,3.757]
[1745173004342,2.40671719,1578.3,1578.0,0.757]
[1745173004676,2.40671719,1578.3,1578.1,5.196]
[1745173005054,2.40671719,1578.3,1578.2,0.757]
[1745173005266,0.1,1578.4,1578.2,0.757]
[1745173005577,0.1,1578.4,1578.3,54.266]
[1745173008198,2.13368355,1578.4,1578.3,54.266]
[1745173009493,2.89478355,1578.4,1578.3,54.266]
[1745173009683,4.17893216,1578.4,1578.3,59.46]
[1745173010794,2.13368355,1578.4,1578.3,59.46]
[1745173011005,0.1,1578.4,1578.3,60.2446]
[1745173011209,2.13368355,1578.4,1578.3,60.2446]
[1745173012685,2.13368355,1578.4,1578.3,59.46]
[1745173020506,2.13368355,1578.4,1578.3,65.46]
[1745173023591,0.1,1578.4,1578.3,65.46]
[1745173024777,0.1,1578.4,1578.3,60.266]
[1745173025110,2.14183738,1578.4,1578.3,65.512]
[1745173025918,3.78550905,1578.4,1578.3,65.512]
[1745173026418,3.78550905,1578.4,1578.3,60.266]
[1745173026612,4.33550905,1578.4,1578.3,59.512]
[1745173026992,9.54331161,1578.4,1578.3,54.266]
[1745173027319,9.54331161,1578.4,1578.3,59.512]
[1745173029423,2.97513506,1578.4,1578.3,59.512]
[1745173029637,8.10373994,1578.4,1578.3,59.512]
[1745173029995,7.34963994,1578.4,1578.3,59.512]
[1745173042605,8.68883994,1578.4,1578.3,59.512]
[1745173063284,5.88553564,1578.4,1578.3,59.512]
[1745173066682,5.96473598,1578.4,1578.3,59.512]
[1745173066991,5.88553564,1578.4,1578.3,59.512]
[1745173069369,5.09633564,1578.4,1578.3,59.512]
[1745173070893,4.54633564,1578.4,1578.3,59.512]
[1745173072263,6.3808692,1578.4,1578.3,59.512]
[1745173074096,5.8308692,1578.4,1578.3,59.512]
[1745173074309,4.54633564,1578.4,1578.3,59.512]
[1745173077378,7.35010766,1578.4,1578.3,59.512]
[1745173077585,7.35010766,1578.4,1578.3,60.2982]
[1745173083735,7.90010766,1578.4,1578.3,54.266]
[1745173083893,14.71298871,1578.4,1578.3,59.514]
[1745173084098,9.50471843,1578.4,1578.3,59.514]
[1745173085007,8.71470766,1578.4,1578.3,59.514]
[1745173096812,7.90010766,1578.4,1578.3,59.514]
[1745173097413,5.09648473,1578.4,1578.3,59.514]
[1745173114585,4.54648473,1578.4,1578.3,59.514]
[1745173117911,2.14183738,1578.4,1578.3,61.89091976]
[1745173119574,2.14183738,1578.4,1578.3,61.10280084]
[1745173119779,2.14183738,1578.4,1578.3,60.3322]
[1745173119978,0.1,1578.4,1578.3,60.3322]
[1745173120183,2.50464735,1578.4,1578.3,60.3322]
[1745173122297,0.1,1578.4,1578.3,60.3322]
[1745173123096,0.1,1578.4,1578.3,66.3322]
[1745173123808,2.50464735,1578.4,1578.3,66.3322]
[1745173127703,2.50464735,1578.4,1578.3,65.514]
[1745173127912,4.54635115,1578.4,1578.3,60.266]
[1745173128224,4.54635115,1578.4,1578.3,65.49]
[1745173128809,4.54635115,1578.4,1578.3,59.49]
[1745173135632,2.1417038,1578.4,1578.3,59.49]
[1745173135830,4.54635115,1578.4,1578.3,59.49]
[1745173140682,4.54635115,1578.4,1578.3,60.3033]
[1745173143951,2.1417038,1578.4,1578.3,63.3033]
[1745173144157,0.1,1578.4,1578.3,63.3033]
[1745173145184,0.1,1578.4,1578.3,69.3033]
[1745173146205,0.1,1578.4,1578.3,69.77458412]
[1745173147720,2.50464735,1578.4,1578.3,69.77458412]
[1745173148011,4.54528206,1578.4,1578.3,15.50858412]
[1745173148808,4.54528206,1578.4,1578.3,15.0373]
[1745173155533,2.50464735,1578.4,1578.3,69.2763]
[1745173159505,0.1,1578.4,1578.3,69.2763]
[1745173159908,0.1,1578.4,1578.3,69.74977658]
[1745173160101,0.1,1578.4,1578.3,16.28137742]
[1745173162154,0.1,1578.4,1578.3,11.05737742]
[1745173162341,2.1443758,1578.4,1578.3,11.05737742]
[1745173165351,2.1443758,1578.4,1578.3,70.51637742]
[1745173165559,0.1,1578.4,1578.3,70.51637742]
[1745173166137,0.1,1578.4,1578.3,69.74577658]
[1745173170262,0.1,1578.4,1578.3,15.51177658]
[1745173171836,0.1,1578.4,1578.3,10.28677658]
[1745173172151,2.1443758,1578.4,1578.3,10.28677658]
[1745173175460,2.1443758,1578.4,1578.3,69.75577658]
[1745173175872,0.1,1578.4,1578.3,69.75577658]
[1745173178888,0.1,1578.4,1578.3,14.70947658]
[1745173180782,0.1,1578.4,1578.3,9.47347658]
[1745173180985,2.14624588,1578.4,1578.3,9.47347658]
[1745173181882,4.55089323,1578.4,1578.3,9.0]
[1745173182887,0.8052,1578.3,1578.1,6.0]
[1745173183181,3.20984735,1578.2,1578.1,6.0]
[1745173183412,0.8052,1578.1,1577.7,6.0]
[1745173183715,2.40464735,1578.0,1577.8,3.0]
[1745173183872,4.45089323,1578.0,1577.8,3.0]
[1745173184272,4.45089323,1578.0,1577.7,7.24990525]
[1745173184709,4.45089323,1578.0,1577.7,6.77060084]
[1745173184896,4.45089323,1578.0,1577.8,3.0]
[1745173185377,2.04624588,1578.0,1577.9,59.47]
[1745173185577,6.01556159,1578.1,1578.0,3.0]
[1745173190813,0.8052,1578.1,1578.0,3.0]
[1745173192519,6.01806159,1578.2,1578.0,3.0]
[1745173193316,0.8077,1578.3,1578.0,6.0]
[1745173193723,2.03916471,1578.2,1578.0,6.0]
[1745173194221,0.8077,1578.3,1578.0,6.0]
[1745173195104,0.8077,1578.3,1578.0,6.77060084]
[1745173199209,0.8077,1578.3,1578.1,6.0]
[1745173199544,0.8077,1578.3,1578.2,5.237]
[1745173200336,0.1,1578.4,1578.2,5.237]
[1745173200724,2.03916471,1578.3,1578.2,5.237]
[1745173200925,0.1,1578.4,1578.2,5.237]
[1745173201325,2.03916471,1578.3,1578.2,5.237]
[1745173201837,0.1,1578.4,1578.2,5.237]
[1745173202057,2.03916471,1578.3,1578.2,5.237]
[1745173202211,2.03916471,1578.3,1578.2,6.0636]
[1745173202409,0.1,1578.4,1578.2,6.0636]
[1745173202649,2.03916471,1578.3,1578.2,6.0636]
[1745173203151,0.1,1578.4,1578.2,6.0636]
[1745173203450,2.03916471,1578.3,1578.2,6.0636]
[1745173203828,0.1,1578.4,1578.2,6.0636]
[1745173204147,2.0423718,1578.3,1578.2,9.0636]
[1745173204449,0.1,1578.4,1578.2,9.0636]
[1745173204948,2.0423718,1578.3,1578.2,9.0636]
[1745173205119,2.0423718,1578.3,1578.2,15.0636]
[1745173205318,0.1,1578.4,1578.2,69.3056]
[1745173205562,2.0423718,1578.3,1578.2,69.3056]
[1745173205722,0.1,1578.4,1578.2,69.3056]
[1745173214801,2.50337469,1578.4,1578.2,68.479]
[1745173218419,0.1,1578.4,1578.2,69.2796]
[1745173218805,0.1,1578.4,1578.3,3.0]
[1745173224106,0.1,1578.4,1578.3,8.237]
[1745173227001,0.9083,1578.4,1578.3,8.237]
[1745173232835,3.31167469,1578.4,1578.3,8.237]
[1745173232999,5.52394223,1578.4,1578.3,8.237]
[1745173240243,2.31226754,1578.4,1578.3,8.237]
[1745173245339,0.1,1578.4,1578.3,8.237]
[1745173250238,2.31333629,1578.4,1578.3,62.475]
[1745173250421,0.1,1578.4,1578.3,62.475]
[1745173251850,0.1,1578.4,1578.3,62.459]
[1745173252048,2.31333629,1578.4,1578.3,62.459]
[1745173256428,4.71671098,1578.4,1578.3,62.459]
[1745173256627,2.50337469,1578.4,1578.3,62.459]
[1745173257834,2.50337469,1578.4,1578.3,68.459]
[1745173262165,3.28157469,1578.4,1578.3,63.238]
[1745173262374,3.28157469,1578.4,1578.3,68.459]
[1745173262531,5.4934414,1578.4,1578.3,68.459]
[1745173263967,5.4934414,1578.4,1578.3,62.459]
[1745173266177,5.4934414,1578.4,1578.3,62.12695553]
[1745173267873,6.04278554,1578.4,1578.3,54.238]
[1745173268079,6.04278554,1578.4,1578.3,62.464]
[1745173269908,6.04278554,1578.4,1578.3,54.238]
[1745173270204,6.06308554,1578.4,1578.3,59.464]
[1745173270501,6.61308554,1578.4,1577.9,1.55871941]
[1745173270669,2.40337469,1578.0,1577.9,3.0]
[1745173270870,4.61550857,1578.0,1577.9,62.467]
[1745173271085,2.40337469,1578.0,1577.9,62.467]
[1745173272401,2.40337469,1578.1,1577.9,62.467]
[1745173272587,2.40337469,1578.1,1577.9,64.78951941]
[1745173273602,0.8777062,1578.3,1577.9,64.78951941]
[1745173273603,2.40337469,1578.2,1577.9,64.78951941]
[1745173273804,2.40337469,1578.3,1578.0,1.55871941]
[1745173274009,2.50337469,1578.4,1578.1,0.7861]
[1745173274305,2.20959513,1578.3,1578.1,0.7861]
[1745173274470,4.61296982,1578.3,1578.1,0.7861]
[1745173278522,2.40337469,1578.3,1578.1,0.7861]
[1745173278977,2.40337469,1578.3,1578.2,8.226]
[1745173279183,3.15777469,1578.3,1578.2,8.226]
[1745173283832,3.15777469,1578.3,1578.2,62.47]
[1745173284123,2.40337469,1578.3,1578.2,62.47]
[1745173285037,2.40337469,1578.3,1578.2,68.47]
[1745173287011,3.15777469,1578.3,1578.2,68.47]
[1745173287404,3.15669256,1578.3,1578.2,68.47]
[1745173288050,2.40229256,1578.3,1578.2,68.47]
[1745173290139,2.40229256,1578.3,1578.2,62.47]
[1745173291558,3.19539256,1578.3,1578.2,62.47]
[1745173294549,3.52493182,1578.3,1578.2,62.47]
[1745173295253,3.52493182,1578.3,1578.2,57.244]
[1745173295452,3.52493182,1578.3,1578.2,62.47]
[1745173296216,5.7363977,1578.3,1578.2,62.47]
[1745173297554,5.40685844,1578.3,1578.2,62.47]
[1745173298255,2.40229256,1578.3,1578.2,62.47]
[1745173298432,2.40337469,1578.3,1578.2,62.47]
[1745173299121,2.40337469,1578.3,1578.2,63.2642]
[1745173300260,2.40337469,1578.3,1578.2,62.47]
[1745173307159,3.15467469,1578.3,1578.2,62.47]
[1745173307360,3.48014216,1578.3,1578.2,62.47]
[1745173309336,4.61390523,1578.3,1578.2,62.47]
[1745173311143,4.61390523,1578.3,1578.2,59.47]
[1745173319254,2.40337469,1578.3,1578.2,59.47]
[1745173324468,2.40337469,1578.3,1578.2,60.293]
[1745173328081,2.40337469,1578.3,1578.2,63.293]
[1745173335490,3.16267469,1578.3,1578.2,62.47]
[1745173345319,3.48894216,1578.3,1578.2,62.454]
[1745173345622,3.16267469,1578.3,1578.2,62.454]
[1745173347511,2.40337469,1578.3,1578.2,62.454]
[1745173349520,4.61443973,1578.3,1578.2,62.454]
[1745173357925,2.40337469,1578.3,1578.2,62.454]
[1745173370606,3.15337469,1578.3,1578.2,62.445]
[1745173370830,5.69783029,1578.3,1578.2,62.445]
[1745173378141,5.75333029,1578.3,1578.2,62.446]
[1745173378573,5.75333029,1578.3,1578.2,59.446]
[1745173382960,6.30333029,1578.3,1578.2,54.244]
[1745173383161,6.30333029,1578.3,1577.5,27.696]
[1745173383162,0.8277,1578.1,1577.6,0.7889]
[1745173383332,2.40337469,1577.8,1577.7,62.449]
[1745173384625,2.40337469,1577.8,1577.7,59.452]
[1745173384958,4.61296982,1577.8,1577.7,59.452]
[1745173385955,2.40337469,1577.8,1577.7,59.452]
[1745173386327,2.72648216,1577.8,1577.7,59.452]
[1745173386541,3.55418216,1577.8,1577.7,59.452]
[1745173387761,4.10418216,1577.8,1577.7,59.452]
[1745173388843,6.31377729,1577.8,1577.7,59.452]
[1745173393166,6.39301247,1577.8,1577.7,59.452]
[1745173400044,5.56531247,1577.8,1577.7,59.452]
[1745173404751,5.48607729,1577.8,1577.7,59.452]
[1745173411082,6.30007729,1577.8,1577.7,59.452]
[1745173411656,6.30007729,1577.8,1577.3,6.7912]
[1745173411983,3.0827026,1577.8,1577.7,54.27]
[1745173412394,3.8967026,1577.8,1577.7,54.27]
[1745173412696,4.38097302,1577.8,1577.7,54.27]
[1745173413092,6.78434771,1577.8,1577.7,54.27]
[1745173413307,0.7791,1577.6,1577.2,0.7912]
[1745173413467,6.9191,1577.6,1577.3,5.215]
[1745173413662,0.55,1577.4,1577.3,5.215]
[1745173414498,2.75210871,1577.4,1577.3,5.215]
[1745173414673,5.1554834,1577.4,1577.3,5.215]
[1745173415365,5.1554834,1577.4,1577.3,59.486]
[1745173415699,5.9345834,1577.4,1577.3,59.486]
[1745173416063,6.60515779,1577.4,1577.3,59.486]
[1745173420024,9.00853248,1577.4,1577.3,59.487]
[1745173422128,9.4892287,1577.4,1577.3,54.271]
[1745173422330,9.4892287,1577.4,1577.3,59.488]
[1745173422714,9.00853248,1577.4,1577.3,59.488]
[1745173425129,15.14853248,1577.4,1577.3,59.488]
[1745173430710,15.14853248,1577.4,1577.3,59.502]
[1745173438435,15.14853248,1577.4,1577.0,0.8159]
[1745173438609,2.40337469,1577.1,1577.0,0.8159]
[1745173438811,4.59692107,1577.1,1577.0,0.8159]
[1745173439341,4.59692107,1577.1,1576.8,0.7653]
[1745173439533,2.40337469,1576.9,1576.8,0.7653]
[1745173440109,4.59692107,1576.9,1576.8,0.7653]
[1745173445417,4.59692107,1576.9,1576.8,60.2733]
[1745173452068,2.40337469,1576.9,1576.8,60.2733]
[1745173456033,2.40337469,1577.1,1576.9,0.7948]
[1745173456235,2.19327871,1577.0,1576.9,0.7948]
[1745173460695,2.19327871,1577.0,1576.9,6.0038]
[1745173462582,2.18634395,1577.0,1576.9,6.0038]
[1745173465887,2.40337469,1577.1,1576.9,6.0038]
[1745173467194,2.19363765,1577.0,1576.9,6.0038]
[1745173467398,2.40337469,1577.1,1576.9,6.0038]
[1745173468202,2.40337469,1577.1,1576.9,5.209]
[1745173468374,3.19637469,1577.1,1576.9,5.209]
[1745173469496,2.40337469,1577.1,1576.9,5.209]
[1745173470603,2.19270081,1577.0,1576.9,8.209]
[1745173480018,2.19270081,1577.0,1576.9,62.497]
[1745173480320,2.40337469,1577.1,1576.9,62.497]
[1745173480706,2.19270081,1577.0,1576.9,62.497]
[1745173486017,2.19270081,1577.0,1576.9,59.497]
[1745173486517,2.19270081,1577.0,1576.9,54.288]
[1745173486518,2.27196916,1577.0,1576.9,54.288]
[1745173486682,2.19270081,1577.0,1576.9,59.492]
[1745173487020,5.06360989,1577.0,1576.9,59.492]
[1745173505658,2.19270081,1577.0,1576.9,59.492]
[1745173515363,2.27196558,1577.0,1576.9,59.492]
[1745173517964,2.19270081,1577.0,1576.9,59.492]
[1745173526142,2.19270081,1577.0,1576.9,62.492]
[1745173526337,2.40337469,1577.2,1576.9,63.3234]
[1745173526542,2.19243306,1577.1,1576.9,63.3234]
[1745173527579,4.59580775,1577.1,1576.9,63.3234]
[1745173528877,2.19243306,1577.1,1576.9,63.3234]
[1745173529088,2.19243306,1577.1,1577.0,5.34095274]
[1745173529792,2.40337469,1577.3,1577.0,5.34095274]
[1745173529990,2.19243306,1577.1,1577.0,5.34095274]
[1745173530149,2.40337469,1577.3,1577.0,5.34095274]
[1745173530349,2.40337469,1577.3,1577.0,4.55283417]
[1745173530555,3.16107469,1577.3,1577.0,3.8314]
[1745173530759,3.16107469,1577.3,1577.0,9.8314]
[1745173531177,2.40337469,1577.2,1577.0,9.8314]
[1745173531385,2.40337469,1577.2,1577.0,9.0]
[1745173532785,3.16107469,1577.3,1577.0,9.0]
[1745173532954,3.16107469,1577.3,1577.0,9.7868]
[1745173533959,3.16107469,1577.3,1577.0,9.0]